Cogmind - Beta 13 @@@ ROGUE MODE // 2024.05.01 @ 15:08:39 Player: BrainTooSmol Result: Self-destructed Performance ------------- Evolutions (2) 1000 Regions Visited (5) 1000 Robots Destroyed (24) 120 Value Destroyed (917) 917 Prototype IDs (2) 40 Alien Tech Used (0) 0 Bonus (20) 20 TOTAL SCORE: 3097 Bonus ------- High Alert Combat Kills 20 Cogmind --------- Core Integrity 327/550 Matter 300/300 Energy 249/375 System Corruption 0% Temperature Hot (210) Movement Treading (320) Ox2 Location -8/Materials Parts ------- > --- POWER (1) -------- Light Ion Engine > --- PROPULSION (2) --- Medium Treads Wheel > --- UTILITY (6) ------ High-capacity Storage Unit High-capacity Battery Targeting Computer Targeting Computer Advanced Targeting Computer Light Armor Plating > --- WEAPON (2) ------- Heavy EM Shotgun Heavy EM Shotgun > --- INVENTORY (20) --- Reinforced Deuterium Engine Fission Core Fission Core Medium Treads Medium Treads High-capacity Matter Pod (200) Heavy Armor Plating Heavy EM Shotgun Grenade Launcher Grenade Launcher Improved Datajack Explosive Trap Explosive Trap Explosive Trap Explosive Trap Peak State ------------ > --- POWER ------------ Light Nuclear Core > --- PROPULSION ------- Medium Treads Wheel > --- UTILITY ---------- High-capacity Storage Unit Targeting Computer Targeting Computer Advanced Targeting Computer Heavy Armor Plating > --- WEAPON ----------- Heavy EM Shotgun Heavy EM Shotgun > --- INVENTORY -------- Reinforced Deuterium Engine Fission Core Fission Core Medium Treads Medium Treads Wheel High-capacity Battery High-capacity Matter Pod Kinecellerator Kinecellerator Reactive Plating Heavy EM Shotgun Heavy EM Shotgun Grenade Launcher Grenade Launcher Improved Datajack Explosive Trap Explosive Trap Explosive Trap Explosive Trap [Rating: 33] Favorites ----------- Power Light Nuclear Core Engine Light Ion Engine Power Core Light Nuclear Core Propulsion Wheel Treads Medium Treads Leg Aluminum Leg Wheel Wheel Utility Targeting Computer Device Experimental Sensor Array Storage High-capacity Storage Unit Processor Targeting Computer Protection Propulsion Shielding Weapon Assault Rifle Energy Gun Medium Laser Energy Cannon Light EM Pulse Cannon Ballistic Gun Assault Rifle Launcher Grenade Launcher Build | -11 -10 -10 -10 -9 -8 ------- Run | Yrd Mat Min Exi Min Mat Slots Evolved 4 | . . . . . 4 Power . | . . . . . . Propulsion . | . . . . . . Utility 4 | . . . . . 4 Weapon . | . . . . . . Parts Attached 43 | . 12 6 . 4 21 Power 4 | . 3 . . . 1 Engine 3 | . 2 . . . 1 Core 1 | . 1 . . . . Reactor . | . . . . . . Propulsion 11 | . 2 2 . 4 3 Treads 2 | . . . . . 2 Leg 2 | . 2 . . . . Wheel 7 | . . 2 . 4 1 Hover . | . . . . . . Flight . | . . . . . . Utility 13 | . 1 3 . . 9 Device 1 | . . . . . 1 Storage 4 | . . 3 . . 1 Processor 3 | . . . . . 3 Hackware . | . . . . . . Protection 5 | . 1 . . . 4 Artifact . | . . . . . . Weapon 15 | . 6 1 . . 8 Energy Gun 10 | . 4 1 . . 5 Energy Cannon 2 | . . . . . 2 Ballistic Gun 2 | . 1 . . . 1 Ballistic Cannon . | . . . . . . Launcher 1 | . 1 . . . . Special Weapon . | . . . . . . Impact Weapon . | . . . . . . Slashing Weapon . | . . . . . . Piercing Weapon . | . . . . . . Special Melee Weapon . | . . . . . . Unidentified Prototypes 2 | . . . . . 2 Parts Lost 9 | . 1 1 . . 7 Power 1 | . . . . . 1 Propulsion 1 | . . . . . 1 Utility 2 | . . . . . 2 Weapon 5 | . 1 1 . . 3 Highest Loss Streak 6 | . 1 1 . . 6 To Critical Strikes . | . . . . . . Average Slot Usage (%) 96 | . 96 96 100 100 94 Engine 1 | . 10 . . . . Core 9 | . 3 14 14 14 7 Treads 3 | . . . . . 8 Leg 7 | . 27 13 . . . Wheel 13 | . . 14 28 28 9 Device 1 | . . . . . 4 Storage 12 | . 14 14 14 14 10 Processor 10 | . . . . . 26 Protection 11 | . 11 14 14 14 7 Energy Gun 10 | . 18 11 14 14 6 Energy Cannon 4 | . . . . . 10 Ballistic Gun 7 | . 7 14 14 14 . Naked Turns . | . . . . . . Heaviest Build 68 | 12 15 50 50 50 68 Greatest Support 28 | 20 20 26 26 26 28 Greatest Overweight (x) 6 | . 2 1 1 2 6 Average Overweight (x) 1 | . . . 1 1 4 Largest Inventory Capacity 20 | . 8 20 20 20 20 Average Capacity 16 | . 8 14 20 20 20 Most Carried 20 | . 8 12 15 20 20 Average Carried 14 | . 5 9 14 17 19 Final Capacity 20 | 8 8 20 20 20 20 Final Carried 20 | 6 5 12 15 20 16 Class Distribution -------------------- 70% | Mutant 29% | Derelict-Mutant Dominant Class ---------------- Mutant | -10/Materials Derelict-Mutant | -10/Mines Derelict-Mutant | -10/Exiles Derelict-Mutant | -9/Mines Mutant | -8/Materials Resources | -11 -10 -10 -10 -9 -8 ----------- Run | Yrd Mat Min Exi Min Mat Matter Collected 898 | 182 99 385 . 52 180 Remotely . | . . . . . . Salvage Created 977 | . 112 140 . 75 650 Parts 44 | . 9 7 . 2 26 Haulers Intercepted 1 | . . . . . 1 Recyclers Shooed 1 | . . . . . 1 Parts Field Recycled . | . . . . . . Retrieved Matter . | . . . . . . Parts Self-Destructed . | . . . . . . Prevented . | . . . . . . Kills | -11 -10 -10 -10 -9 -8 ------- Run | Yrd Mat Min Exi Min Mat Combat Hostiles Destroyed 20 | . 5 3 . 1 11 Guns 8 | . 2 3 . 1 2 Cannons 1 | . . . . . 1 AOE 8 | . 3 . . . 5 Classes Destroyed 9 | . 2 . . 1 6 Builder 1 | . . . . . 1 Hauler 1 | . . . . . 1 Recycler 1 | . . . . 1 . Watcher 1 | . . . . . 1 Swarmer 3 | . 3 . . . . Grunt 13 | . 2 3 . . 8 Brawler 1 | . . . . . 1 Sentry 1 | . . . . . 1 Hunter 1 | . . . . . 1 Best Kill Streak 3 | . 3 2 . 1 3 Combat Bots Only 3 | . 3 2 . 1 3 Max Kills in Single Turn 3 | . 2 1 . 1 3 Gunslinging . | . . . . . . Exploded 3 | . 2 . . . 3 Melee . | . . . . . . Uniques/NPCs Destroyed 1 | . . . . 1 . YI-UF0 (-9/Mines) Combat | -11 -10 -10 -10 -9 -8 -------- Run | Yrd Mat Min Exi Min Mat Hostile Shots Fired 123 | . 23 8 . . 92 Missed 41 | . 11 5 . . 25 Damage Taken 1514 | . 139 30 . . 1345 Core 246 | . 23 . . . 223 Absorbed by Shields . | . . . . . . Redirected to Shielding 17 | . 1 3 . . 13 Regen/Repaired (Parts) 24 | . 24 . . . . Core Remaining (%) 95 | 100 . . . 90 . Volleys Fired 60 | . 10 8 . 4 38 Largest 2 | . 2 2 . 2 2 Hottest 112 | . 60 70 . 70 112 Shots Fired 112 | . 14 15 . 8 75 Gun 88 | . 8 15 . 8 57 Cannon 18 | . . . . . 18 Launcher 6 | . 6 . . . . Special . | . . . . . . Kinetic 16 | . 4 8 . 4 . Thermal 6 | . . 2 . 4 . Explosive 6 | . 6 . . . . Electromagnetic 84 | . 4 5 . . 75 Robot Hit Streak 20 | . 4 7 . 6 20 Robot Miss Streak 3 | . 3 2 . 2 2 Penetration Max . | . . . . . . Secondary Targets 1 | . 1 . . . . Max Gunslinging Chain 1 | . 1 . . . . Shots Hit Robots 80 | . 9 12 . 6 53 Core Hits 36 | . 8 4 . 3 21 Critical Kills . | . . . . . . Critical Parts Destroyed . | . . . . . . Critical Strikes 1 | . . . . 1 . Burn 1 | . . . . 1 . Melee Attacks . | . . . . . . Impact . | . . . . . . Slashing . | . . . . . . Piercing . | . . . . . . Sneak Attacks . | . . . . . . Combat Hostiles . | . . . . . . Follow-up Attacks . | . . . . . . Damage Inflicted 2464 | . 267 147 . 89 1961 Guns 1106 | . 77 147 . 89 793 Cannons 361 | . . . . . 361 Explosions 997 | . 190 . . . 807 Melee . | . . . . . . Ramming . | . . . . . . Kinetic 150 | . 24 73 . 53 . Thermal 868 | . . 25 . 36 807 Explosive 190 | . 190 . . . . Electromagnetic 1256 | . 53 49 . . 1154 Impact . | . . . . . . Slashing . | . . . . . . Piercing . | . . . . . . Highest Corruption . | . . . . . . Average Corruption . | . . . . . . Corruption Purged . | . . . . . . Corruption Blocked . | . . . . . . Overload Shots . | . . . . . . Overflow Damage 225 | . 38 . . . 187 Projectiles . | . . . . . . Explosions 225 | . 38 . . . 187 Melee . | . . . . . . Knockbacks . | . . . . . . Impact . | . . . . . . Kinetic . | . . . . . . Secondary . | . . . . . . Self-Inflicted Damage 325 | . 30 . . . 295 Shots 7 | . 1 . . . 6 Rammed . | . . . . . . Targets Rammed . | . . . . . . Kicked . | . . . . . . Crushed . | . . . . . . Highest Temperature 331 | . 18 42 . 30 331 Average Temperature 93 | . 15 20 . 16 111 Received Heat Transfer 594 | . 18 18 . . 558 Effects 1 | . . . . . 1 Energy Bleed 1 | . . . . . 1 Siege Activations . | . . . . . . Robots Corrupted 4 | . . . . . 4 Combat Hostiles 3 | . . . . . 3 Parts Fried 11 | . . 1 . . 10 Impact Corruptions . | . . . . . . Robots Melted . | . . . . . . Combat Hostiles . | . . . . . . Parts Melted . | . . . . . . Heat Transferred 959 | . . 74 . 185 700 Parts Sabotaged . | . . . . . . Parts Stolen . | . . . . . . Parts Stripped . | . . . . . . Power Chain Reactions 6 | . . . . . 6 Alert | -11 -10 -10 -10 -9 -8 ------- Run | Yrd Mat Min Exi Min Mat Peak Influence 510 | . 156 35 . 5 510 Initial 5 | . . 5 . . . Average 63 | . 52 20 . 1 115 Maximum Alert Level 2 | . . . . . 2 Low Security (%) 89 | . 100 100 . 100 74 Level 1 5 | . . . . . 12 Level 2 5 | . . . . . 12 Level 3 . | . . . . . . Level 4 . | . . . . . . Level 5 . | . . . . . . High Security . | . . . . . . Max Security . | . . . . . . Squads Dispatched 2 | . . . . . 2 Investigation . | . . . . . . Extermination . | . . . . . . Reinforcement . | . . . . . . Assault 1 | . . . . . 1 Garrison 1 | . . . . . 1 Intercept . | . . . . . . Searches Triggered . | . . . . . . Construction Impeded . | . . . . . . Haulers Reinforced . | . . . . . . Active Scanning Responses . | . . . . . . Cargo Convoy Interrupts . | . . . . . . Stealth | -11 -10 -10 -10 -9 -8 --------- Run | Yrd Mat Min Exi Min Mat Distress Signals . | . . . . . . Communications Jammed . | . . . . . . Distress Signals . | . . . . . . Times Spotted 28 | . 6 3 . 1 18 Peak Tracking Total 5 | . 3 2 . 1 5 Tactical Retreats 5 | . . . . . 5 Traps | -11 -10 -10 -10 -9 -8 ------- Run | Yrd Mat Min Exi Min Mat Traps Triggered 3 | . 3 . . . . Indirectly . | . . . . . . Trap Hack Attempts . | . . . . . . Triggered . | . . . . . . Disarmed . | . . . . . . Reprogrammed . | . . . . . . Reused . | . . . . . . Traps Extracted . | . . . . . . Installed . | . . . . . . Triggered . | . . . . . . Most Traps Carried 4 | . . 4 4 4 4 Machines | -11 -10 -10 -10 -9 -8 ---------- Run | Yrd Mat Min Exi Min Mat Machines Disabled 6 | . 1 . . . 5 Max in Single Turn 2 | . 1 . . . 2 Garrison Access 1 | . . . . . 1 Machines Repaired . | . . . . . . Machines Dismantled . | . . . . . . Machines Sabotaged . | . . . . . . Overloaded Fab Kills . | . . . . . . Hacking | -11 -10 -10 -10 -9 -8 --------- Run | Yrd Mat Min Exi Min Mat Machines Accessed 8 | . 3 . 1 1 3 Terminals 4 | . 2 . . 1 1 Fabricators . | . . . . . . Repair Stations 1 | . 1 . . . . Recycling Units 1 | . . . . . 1 Scanalyzers 1 | . . . . . 1 Garrison Access . | . . . . . . Total Hacks 26 | . 6 . 1 1 18 Successful 19 | . 3 . 1 . 15 Failed 7 | . 3 . . 1 3 Catastrophic 1 | . . . . 1 . Database Lockouts . | . . . . . . Manual 10 | . 3 . . 1 6 Terminals 6 | . 3 . . 1 2 Fabricators . | . . . . . . Repair Stations 3 | . 3 . . . . Recycling Units 6 | . . . . . 6 Scanalyzers 10 | . . . . . 10 Garrison Access . | . . . . . . Terminal Hacks 1 | . . . 1 . . Record 1 | . . . 1 . . Fabricator Hacks . | . . . . . . Repair Station Hacks 2 | . 2 . . . . Scan Component 1 | . 1 . . . . Repair 1 | . 1 . . . . Recycling Unit Hacks 2 | . . . . . 2 Retrieve Matter 1 | . . . . . 1 Retrieve Components 1 | . . . . . 1 Scanalyzer 10 | . . . . . 10 Insert Component 5 | . . . . . 5 Analyze 5 | . . . . . 5 Garrison Access Hacks . | . . . . . . Unauthorized Hacks 4 | . 1 . . . 3 Terminals 2 | . 1 . . . 1 Botnet 2 | . 1 . . . 1 Fabricators . | . . . . . . Repair Stations . | . . . . . . Recycling Units 2 | . . . . . 2 Reject 1 | . . . . . 1 Mask 1 | . . . . . 1 Scanalyzers . | . . . . . . Garrison Access . | . . . . . . Data Cores Recovered . | . . . . . . Used . | . . . . . . Hacking Detections 6 | . 2 . . 1 3 Full Trace Events . | . . . . . . Feedback Events . | . . . . . . Feedback Blocked . | . . . . . . Robot Schematics Acquired . | . . . . . . Robots Built . | . . . . . . Authchips . | . . . . . . Time . | . . . . . . Total Robot Build Rating . | . . . . . . Part Schematics Acquired 5 | . . . . . 5 Parts Built . | . . . . . . Authchips . | . . . . . . Time . | . . . . . . Total Part Build Rating . | . . . . . . Parts Repaired 1 | . 1 . . . . Time 26 | . 26 . . . . Parts Recycled . | . . . . . . Recycled Matter . | . . . . . . Retrieved Matter . | . . . . . . Retrieved Components 3 | . . . . . 3 Parts Scanalyzed 5 | . . . . . 5 Part Schematics Acquired 5 | . . . . . 5 Parts Damaged 1 | . . . . . 1 Bothacking | -11 -10 -10 -10 -9 -8 ------------ Run | Yrd Mat Min Exi Min Mat Used RIF Installer . | . . . . . . Robots Hacked . | . . . . . . Non-combat . | . . . . . . Combat . | . . . . . . Robot Hacks Applied . | . . . . . . Relay Couplers Released 2 | . . . . . 2 Machine Destruction 2 | . . . . . 2 Fabnet Peak Effective % . | . . . . . . Robots Rewired . | . . . . . . Allies Hacked . | . . . . . . Hacks Repelled . | . . . . . . Allies | -11 -10 -10 -10 -9 -8 -------- Run | Yrd Mat Min Exi Min Mat Total Allies . | . . . . . . Largest Group . | . . . . . . Highest-Rated Group . | . . . . . . Highest-Rated Ally . | . . . . . . Total Orders . | . . . . . . Ally Attacks . | . . . . . . Total Damage . | . . . . . . Kills . | . . . . . . Allies Corrupted . | . . . . . . Allies Melted . | . . . . . . Intel | -11 -10 -10 -10 -9 -8 ------- Run | Yrd Mat Min Exi Min Mat Robot Analysis Total . | . . . . . . Derelict Logs Recovered 3 | . . 2 . 1 . Drone Launches . | . . . . . . Drone Recoveries . | . . . . . . Exploration | -11 -10 -10 -10 -9 -8 ------------- Run | Yrd Mat Min Exi Min Mat Turns Passed 3051 | . 452 750 247 404 1198 Spaces Moved 1865 | 1 292 542 233 344 453 Core 2 | . 2 . . . . Treads 4 | . . . . . 4 Legs 503 | 1 290 212 . . . Wheels 1356 | . . 330 233 344 449 Hover . | . . . . . . Flight . | . . . . . . Fastest Speed 90 | 120 120 90 105 105 110 Average Speed 121 | 120 120 110 105 106 154 Slowest Speed 320 | 120 190 120 105 110 320 Overloaded Moves . | . . . . . . Propulsion Burnouts . | . . . . . . Robots Hopped . | . . . . . . Cave-ins Triggered . | . . . . . . Exploration Rate (%) 49 | 2 38 89 58 87 22 Regions Visited 5 Branch Regions 3 Pre-discovered Areas 1 | . . . 1 . . Known Exits Taken 1 | . . 1 . . . Unknown Exits Taken 4 | 1 1 . 1 1 . Scrap Searched 4 | . . 3 . 1 . Spaces Dug . | . . . . . . Terrain Destroyed 85 | . 20 . . . 65 Melee . | . . . . . . Projectile . | . . . . . . AOE 85 | . 20 . . . 65 Terrain Rammed . | . . . . . . Walls Destroyed . | . . . . . . Machines Disabled . | . . . . . . Actions | -11 -10 -10 -10 -9 -8 --------- Run | Yrd Mat Min Exi Min Mat Total 2541 | . 375 675 235 374 882 Wait 507 | . 52 110 . 18 327 Move 1860 | . 291 541 232 343 453 Hop . | . . . . . . Pick Up 37 | . 5 7 3 3 19 Fast Attach 21 | . 8 3 . 1 9 Attach 11 | . 1 . . . 10 Detach 2 | . . . . . 2 Swap 11 | . 3 3 . 3 2 Drop 32 | . 5 3 . 2 22 Fire 60 | . 10 8 . 4 38 Melee . | . . . . . . Ram . | . . . . . . Kick . | . . . . . . Crush . | . . . . . . Escape Stasis . | . . . . . . Rewire . | . . . . . . Trap . | . . . . . . Miscellaneous . | . . . . . . Route ------- -11/Scrapyard -10/Materials (discovered 2 exits: [*Mat] / [*Min]) -10/Mines (discovered 3 exits: [*Mat x2] / *Exi) -10/Exiles -9/Mines -8/Materials History --------- Turn | Location | Event 1 | -11/Scrapyard | Discovered new exit (range 0) 1 | -11/Scrapyard | Entered Materials 240 | -10/Materials | Discovered new exit (range 15) 307 | -10/Materials | Build established: Mutant 407 | -10/Materials | Repaired Grenade Launcher 413 | -10/Materials | Discovered new exit (range 16) 453 | -10/Materials | Entered Mines 464 | -10/Mines | Met a Derelict bent on vengeance 489 | -10/Mines | Discovered new exit (range 5) 494 | -10/Mines | Discovered new exit (range 15) 500 | -10/Mines | Identified exit to Exiles 546 | -10/Mines | Excavation squad dispatched 546 | -10/Mines | A large section of the Mines collapsed 807 | -10/Mines | Found a hidden stash of uninstalled traps 984 | -10/Mines | Learned Materials garrison access intel 1116 | -10/Mines | Build established: Derelict-Mutant 1198 | -10/Mines | Deemed a non-threat by the Exiles lab entrance 1203 | -10/Mines | Entered Exiles 1235 | -10/Exiles | Met 8R-AWN 1253 | -10/Exiles | Met EX-HEX 1294 | -10/Exiles | Met EX-DEC 1298 | -10/Exiles | Learned location of Zion (-7) 1440 | -10/Exiles | Discovered new exit (range 11) 1450 | -10/Exiles | Entered Mines 1632 | -9/Mines | Learned Materials stockpile data 1719 | -9/Mines | Found a damaged Exp. Sensor Array with a note attached 1722 | -9/Mines | Found Prototype Device 1730 | -9/Mines | Discovered new exit (range 15) 1736 | -9/Mines | Destroyed YI-UF0 1854 | -9/Mines | Entered Materials 1854 | -8/Materials | Evolved 4 slots: Utility x4 1854 | -8/Materials | Identified Exp. Sensor Array 1856 | -8/Materials | Loaded intel: 1 garrison access location 2033 | -8/Materials | Build established: Mutant 2737 | -8/Materials | Garrison activated, responded to threat 2928 | -8/Materials | Lost 6 parts (1p1n1u3w) 3052 | -8/Materials | Self-destructed Last Messages --------------- 02897_ G-47 Trooper destroyed. 02897_ Material Compactor disabled. 02904_ Acquired 34 matter. 02907_ Acquired 1 matter. 02920_ Acquired Lgt. Ion Engine. 02921_ Acquired 5 matter. 02971_ U-05 Engineer lays Concrete. 02975_ K-01 Serf collects debris. 03006_ Chain reaction triggered in Rnf. Ion Engine. 03006_ B-36 Bruiser destroyed. 03008_ K-01 Serf collects debris. 03011_ Acquired Lgt. Armor Plating. 03011_ K-01 Serf collects debris. 03012_ Acquired 10 matter. 03012_ K-01 Serf collects debris. 03015_ R-06 Scavenger collects Lgt. Treads. 03016_ K-01 Serf collects debris. 03018_ R-06 Scavenger collects Corrupted Hammer. 03026_ Garrison Access disabled. 03050_ K-01 Serf cleans the Atomic Centrifuge. Map ----- +----------------------------------------------------+ | ?????????????????????????????????????????????????? | | ?????????????????????????????????????????????????? | | ?????????????????????????????????????????????????? | | ?????????????????????????????????????????????????? | | ?????????????????????????????????????????????????? | | ?????????????????????????????????????????????????= | | ?????????????????????????????????????????????????? | | ?????????????????????????????????????????????????? | | ?????????????????????????????????????????????????? | | ?????????????????????????????????????????????????? | | ?????????????????????????????????????????????????? | | ?????????????????????????????????????????????????? | | ?????????????????????????????????????????????????? | | ???????????????????#?????????????????????????????? | | ???????????????????# ????????????????????????????? | | ???????????????????+ ???????????????????????????? | | ???????????????????# ???????????????????????????? | | ???????????????????? ??????????????????????????? | | ????????????????????? ??????????????????????????? | | ?????????????????????#r################??????????? | | ?????????????????????# ?????????? | | ?????????????????????# ??????????? | | ?!???????????????????# " ??????????????? | | ?????????????????????# "G" k#?#######+#???????? | | ?????????????????????# " ## ! [ ???????? | | ?????????????????????# @ *## ???????? | | ?????????????????????# ;# #??????? | | ?????????????????????# ;; ???????? | | ????????????????????## r ;;k""" ""?????????? | | ????????????????????# ;; """ ???????????? | | ????????????????????# [ ; """ ???????????? | | ????????????????????# # ???????? | | ????????????????????####+##;%% #?######?????????? | | ?????????????????# ; #######??????????? | | ?????????????????#= ; ;% #??????????? | | ?????????????????# # # #??????????? | | ?????????????????# """ """ # # %""" #??????????? | | ???????????????????""" """ # % """ #??????????? | | ???????????????????""" """ # ; """ #??????????? | | ???????????????????? # " #??????????? | | ???????????????????? ??? # ""######????####### | | ????????????????????????#### # #????????? | | ???????????????????????????# ###??####### """ | | ???????????????????????????# #??###"""""#""""" | | ???????????????????????????# #??#" = " """" | | ???????????????????????????# #?##" """""" | | ???????????????????????????# #?# " " "" | | ???????????????????????????# #?# " " | | ???????????????????????????# #?# " | | ???????????????????????????#% !#?# " = "###### | +----------------------------------------------------+ Best States ------------- Heat Dissipation 31 Energy Generation 14 Energy Capacity 410 Matter Stores 300 Matter Capacity 300 Sight Range 16 Robot Scan Range 20 Terrain Scan Density 10 Armor Coverage 600 Resistance: KI 20 Propulsion Shielding 33 Evasion (%) 55 Targeting Accuracy 18 Recoil Reduction 1 Item Schematics ----------------- Hvy. Armor Plating | -8/Materials | Scanalyzed Imp. Grenade Launcher | -8/Materials | Scanalyzed Kinecellerator | -8/Materials | Scanalyzed Reactive Plating | -8/Materials | Scanalyzed Imp. Datajack | -8/Materials | Scanalyzed Robot Schematics ------------------ None Fabricated ------------ Nothing Alien Tech Used ----------------- None Achievements -------------- None Challenges ------------ None Game ------ Seed InertialReflectiveClaw Manual? 0 Play Time 00:25:38 Cumulative 68.9 hours Start 2024.05.01 @ 14:46:37 End 2024.05.01 @ 15:08:39 Sessions 1 Manual Loads 0 Difficulty Rogue Special Mode None Game No. 47 Rogue 47 Adventurer 0 Explorer 0 Win Type - Total 1 Types 1/0/0/0/0/0/0/0/0 Lore% 51 Gallery% 41 Achievement% 39 Wizard Run 0 Options --------- Layout 0 ASCII 0 Keyboard 0 Movement Mouse Keybinds 0 Fullscreen 1 Font 18/SmallcapsGlow Map View 76x50 Zoom Use 0% Tactical HUD 1 Map Filters NONE Filters NONE Steam 1 RUN: 0a9013ca-1e4b-444e-aae7-1ecf37371ee1